bitfinex/quotes_SOLUSD_20250805
["timestamp","ask_amount","ask_price","bid_price","bid_amount"]
[1754398390385,6.37272935,168.02,167.98,0.66]
[1754398390563,50.35272935,168.03,167.98,7.03272935]
[1754398390761,50.93272935,168.03,167.98,12.98567603]
[1754398390990,6.95272935,168.05,168.0,6.37272935]
[1754398391167,76.35272935,168.06,168.01,7.03272935]
[1754398391785,76.93272935,168.06,168.01,7.03272935]
[1754398391972,0.58,168.05,167.98,5.95294668]
[1754398392290,0.58,168.07,168.02,6.37272935]
[1754398392465,12.9916399,168.1,168.05,6.37272935]
[1754398392653,6.61891055,168.1,168.06,6.37272935]
[1754398392856,7.04272935,168.09,168.04,6.37272935]
[1754398393051,0.67,168.08,168.04,6.37272935]
[1754398393651,7.04272935,168.08,168.03,12.32394834]
[1754398393870,6.37272935,168.05,168.0,32.37272935]
[1754398394053,7.04272935,168.05,168.0,6.37272935]
[1754398394256,7.04272935,168.05,168.0,7.03272935]
[1754398394492,0.67,168.04,167.99,6.37272935]
[1754398394785,0.67,168.04,167.99,10.86815713]
[1754398394976,0.67,168.04,168.0,10.20815713]
[1754398395178,6.62103411,168.04,168.0,10.20815713]
[1754398395477,6.62103411,168.04,167.99,10.86815713]
[1754398395785,0.67,168.04,167.99,16.82080579]
[1754398396363,6.62100753,168.04,167.99,16.82080579]
[1754398397063,0.67,168.04,167.99,16.82080579]
[1754398397263,43.98,168.05,168.01,10.20815713]
[1754398397480,44.65,168.05,168.0,0.66]
[1754398397663,0.67,168.04,168.0,10.20815713]
[1754398397876,54.18815713,168.05,168.0,10.20815713]
[1754398398181,54.85815713,168.05,168.01,0.66]
[1754398398483,43.98,168.05,168.01,10.86815713]
[1754398398779,43.96,168.05,168.02,10.86815713]
[1754398398978,147.7,168.06,168.03,10.86815713]
[1754398399288,147.7,168.06,168.04,0.66]
[1754398399464,75.90994014,168.07,168.03,10.20815713]
[1754398399664,10.87815713,168.06,168.01,10.20815713]
[1754398399896,0.67,168.05,168.01,10.20815713]
[1754398400086,0.67,168.05,167.99,0.66]
[1754398400382,0.67,168.05,168.01,10.20815713]
[1754398400558,70.63,168.07,168.02,10.86815713]
[1754398400964,32.61993478,168.07,168.02,16.81977148]
[1754398401283,70.63,168.07,168.03,0.66]
[1754398401588,26.0,168.07,168.02,16.15977148]
[1754398401787,69.96,168.07,168.04,0.66]
[1754398401972,69.96,168.07,168.03,0.66]
[1754398402384,26.0,168.07,168.03,0.66]
[1754398402890,26.67,168.07,168.03,0.66]
[1754398403187,32.61997737,168.07,168.03,0.66]
[1754398403569,76.57997737,168.07,168.02,16.15972234]
[1754398403761,86.7881345,168.07,168.02,16.81972234]
[1754398403961,10.20815713,168.05,168.0,10.20815713]
[1754398404185,0.67,168.05,168.01,10.26815713]
[1754398404366,0.67,168.05,168.01,10.92815713]
[1754398404864,147.7,168.06,168.04,10.20815713]
[1754398405064,147.7,168.06,168.01,6.01197023]
[1754398405065,0.03,168.09,168.05,10.86815713]
[1754398405274,0.03,168.09,168.06,10.20815713]
[1754398405767,0.03,168.09,168.05,10.20815713]
[1754398405967,54.83815713,168.08,168.02,10.86815713]
[1754398406168,10.87815713,168.07,168.02,10.20815713]
[1754398406373,0.67,168.06,168.02,10.20815713]
[1754398406778,10.87815713,168.05,168.01,6.01197023]
[1754398406970,0.67,168.05,168.01,16.22016286]
[1754398407375,5.95035946,168.06,168.01,16.88016286]
[1754398407671,10.87815713,168.06,168.01,16.88016286]
[1754398408792,0.67,168.06,168.01,16.88016286]
[1754398409172,49.8899976,168.07,168.02,0.67]
[1754398409387,147.7,168.06,168.02,0.67]
[1754398411195,148.39,168.06,168.01,16.22016286]
[1754398411496,148.39,168.06,168.01,16.89016286]
[1754398411794,148.39,168.06,168.01,6.68200573]
[1754398411970,0.69,168.05,168.01,16.89016286]
[1754398412484,191.64,168.06,168.02,10.87815713]
[1754398412888,192.33,168.06,168.02,10.87815713]
[1754398413290,192.33,168.06,168.02,16.15982184]
[1754398413590,202.53815713,168.06,168.02,16.15982184]
[1754398413780,158.59815713,168.06,168.02,16.15982184]
[1754398413979,147.7,168.06,168.05,10.20815713]
[1754398414300,147.7,168.06,168.03,10.87815713]
[1754398414678,147.7,168.06,168.04,6.37667807]
[1754398414872,147.7,168.06,168.04,12.32746848]
[1754398415214,7.06667807,168.05,168.01,0.06]
[1754398415506,0.69,168.05,168.01,6.01200423]
[1754398415709,7.06667807,168.05,168.01,0.06]
[1754398415892,0.69,168.04,168.01,0.06]
[1754398417308,7.06667807,168.03,168.01,0.06]
[1754398417604,0.69,168.02,168.01,0.06]
[1754398418405,49.87070763,168.05,168.01,7.10667807]
[1754398418794,56.9373857,168.05,168.01,0.73]
[1754398419178,56.9373857,168.05,168.01,0.06]
[1754398419487,56.9373857,168.05,168.01,6.43667807]
[1754398419488,0.69,168.05,168.01,6.43667807]
[1754398419704,191.62,168.06,168.01,0.06]
[1754398419934,6.37667807,168.02,168.01,0.06]
[1754398420080,6.37667807,168.03,168.01,0.06]
[1754398420283,7.06667807,168.03,168.01,0.06]
[1754398420507,50.98667807,168.03,168.01,0.06]
[1754398421009,44.61,168.03,168.01,0.06]
[1754398421305,6.37667807,168.03,168.01,0.06]
[1754398421515,7.06667807,168.02,168.01,0.06]
[1754398421880,44.59,168.03,168.01,0.06]
[1754398422181,7.06667807,168.03,168.01,0.06]
[1754398422403,6.37667807,168.02,168.01,0.06]
[1754398422781,7.06667807,168.02,168.01,0.06]
[1754398423310,6.37667807,168.02,168.01,0.06]
[1754398423605,56.22788621,168.04,168.01,0.06]
[1754398424007,148.39,168.06,168.01,0.06]
[1754398424211,147.7,168.06,168.02,0.67]
[1754398424408,147.7,168.06,168.03,0.67]
[1754398424622,147.7,168.06,168.02,6.37667807]
[1754398424797,6.37667807,168.04,168.01,0.06]
[1754398425322,147.7,168.06,168.02,12.99828197]
[1754398425614,147.7,168.06,168.02,12.99831121]
[1754398426118,147.7,168.06,168.05,6.37667807]
[1754398426292,43.93,168.09,168.05,6.37667807]
[1754398426488,0.03,168.09,168.05,7.04667807]
[1754398427201,0.03,168.09,168.06,6.62010035]
[1754398427523,0.03,168.09,168.06,7.04667807]
[1754398427726,0.03,168.09,168.04,6.62086242]
[1754398427886,6.40667807,168.09,168.04,12.99754049]
[1754398428089,44.59,168.08,168.03,6.37667807]
[1754398428288,7.06667807,168.07,168.02,6.37667807]
[1754398428511,0.69,168.06,168.02,6.37667807]
[1754398429113,0.69,168.05,168.01,0.06]
[1754398429522,6.6406308,168.05,168.01,0.06]
[1754398429695,6.37667807,168.03,168.01,0.06]
[1754398430088,7.06667807,168.02,168.01,0.06]
[1754398431028,10.94314075,168.02,168.01,0.06]
[1754398431242,32.1431903,168.02,168.01,0.06]
[1754398431409,32.1431903,168.02,168.01,1e-08]
[1754398431917,15.10621557,167.99,167.9,0.06]
[1754398432126,6.37667807,167.94,167.9,0.06]
[1754398432311,6.37667807,167.92,167.9,0.06]
[1754398433094,43.88,167.94,167.9,0.06]
[1754398433296,43.88,167.94,167.91,0.67]
[1754398433297,50.25667807,167.94,167.91,0.67]
[1754398433522,43.88,167.94,167.91,0.67]
[1754398433830,50.25667807,167.94,167.9,0.06]
[1754398434036,50.25667807,167.94,167.9,0.73]
[1754398434197,6.37667807,167.94,167.91,0.67]
[1754398434397,50.25667807,167.94,167.91,0.67]
[1754398434734,54.10009506,167.94,167.91,0.67]
[1754398435230,10.22009506,167.98,167.93,16.17481599]
[1754398435437,43.88,167.97,167.93,0.67]
[1754398435607,10.22009506,167.95,167.9,10.95009506]
[1754398435812,10.91009506,167.95,167.9,10.95009506]
[1754398436036,0.69,167.95,167.9,6.68583257]
[1754398436245,10.22009506,167.95,167.91,0.67]
[1754398436533,44.57,167.97,167.91,0.67]
[1754398436832,10.22009506,167.95,167.91,0.67]
[1754398437202,10.22009506,167.95,167.91,6.62545823]
[1754398437403,147.7,167.96,167.91,6.62545823]
[1754398437636,10.22009506,167.95,167.91,0.67]
[1754398437930,10.91009506,167.95,167.9,16.23596261]
[1754398438123,10.91009506,167.95,167.91,0.67]
[1754398439417,10.91009506,167.95,167.9,16.23596261]
[1754398439930,10.22009506,167.94,167.9,6.68586755]
[1754398440309,10.91009506,167.95,167.9,16.90596261]
[1754398440631,147.7,167.96,167.91,10.89009506]
[1754398440837,147.7,167.96,167.95,10.22009506]
[1754398440996,148.39,168.03,167.95,10.89009506]
[1754398441199,148.39,168.03,167.9,46.90568291]
[1754398441200,10.22009506,168.01,167.96,16.84358268]
[1754398441428,10.22009506,168.01,167.97,0.67]
[1754398441719,0.69,168.01,167.96,5.95348762]
[1754398441897,0.69,168.01,167.96,10.22009506]
[1754398442095,10.91009506,168.01,167.96,10.89009506]
[1754398442708,10.91009506,168.01,167.97,10.89009506]
[1754398442912,0.69,168.01,167.97,0.67]
[1754398443224,10.91009506,168.01,167.97,0.67]
[1754398443800,5.95211085,168.01,167.95,6.62405684]
[1754398444016,10.91009506,168.0,167.96,10.22009506]
[1754398444414,10.91009506,168.0,167.96,10.89009506]
[1754398444726,147.7,167.99,167.95,5.95405684]
[1754398444937,147.7,167.99,167.95,16.8441519]
[1754398445224,148.39,167.99,167.95,10.89009506]
[1754398445397,148.39,167.99,167.95,10.22009506]
[1754398445842,148.39,167.99,167.92,5.95487205]
[1754398445843,10.22009506,167.96,167.92,5.95487205]
[1754398446007,54.08009506,167.96,167.91,42.17566297]
[1754398446206,54.08009506,167.96,167.91,42.84566297]
[1754398446431,43.86,167.96,167.92,10.89009506]
[1754398447139,44.55,167.96,167.92,16.17526983]
[1754398447329,43.86,167.96,167.92,16.84526983]
[1754398447634,10.91009506,167.95,167.89,0.06]
[1754398447813,10.91009506,167.95,167.9,10.28009506]
[1754398448019,0.69,167.94,167.9,10.28009506]
[1754398448241,54.75009506,167.93,167.9,0.06]
[1754398448611,0.69,167.92,167.9,0.06]
[1754398448837,54.75009506,167.93,167.9,0.06]
[1754398449223,60.7049718,167.93,167.9,0.06]
[1754398450029,16.8649718,167.93,167.9,0.06]
[1754398450354,60.7049718,167.93,167.9,0.06]
[1754398450514,10.22009506,167.92,167.9,0.06]
[1754398450707,50.48487674,167.93,167.9,0.06]
[1754398450908,10.22009506,167.92,167.9,0.06]
[1754398452526,10.22009506,167.91,167.9,0.06]
[1754398452730,10.91009506,167.91,167.9,0.06]
[1754398454440,10.22009506,167.92,167.9,0.06]
[1754398454632,10.22009506,167.91,167.9,0.06]
[1754398454944,10.91009506,167.91,167.9,0.06]
[1754398455326,54.75009506,167.91,167.9,0.06]
[1754398456412,60.70566649,167.91,167.9,0.06]
[1754398456921,101.95404363,167.91,167.9,0.06]
[1754398457127,75.95404363,167.91,167.9,0.06]
[1754398457632,26.0,167.88,167.84,0.06]
[1754398457843,10.22009506,167.85,167.84,0.06]
[1754398458047,54.06009506,167.85,167.84,0.06]
[1754398458429,60.70779538,167.85,167.84,0.06]
[1754398460146,54.06009506,167.85,167.84,0.06]
[1754398460319,54.04009506,167.85,167.84,0.06]
[1754398460843,59.99779538,167.85,167.84,0.06]
[1754398461023,60.68779538,167.85,167.84,0.06]
[1754398462241,59.99779538,167.85,167.84,0.06]
[1754398462827,54.04009506,167.85,167.84,0.06]
[1754398463741,157.92009506,167.86,167.84,0.06]
[1754398463923,201.74009506,167.86,167.84,0.06]
[1754398464330,10.22009506,167.85,167.84,0.06]
[1754398464730,6.39470842,167.85,167.84,0.06]
[1754398466835,147.7,167.86,167.84,0.73]
[1754398467251,147.7,167.86,167.85,0.67]
[1754398467459,147.7,167.86,167.84,0.06]
[1754398467636,154.09470842,167.86,167.84,0.06]
[1754398468040,154.09470842,167.85,167.84,0.06]
[1754398468360,6.39470842,167.85,167.84,0.06]
[1754398468562,6.39470842,167.86,167.84,0.06]
[1754398468729,6.39470842,167.86,167.84,0.73]
[1754398469128,50.21470842,167.87,167.84,0.73]
[1754398469332,43.82,167.86,167.84,0.73]
[1754398469831,26.0,167.88,167.85,0.7]
[1754398469832,43.82,167.88,167.85,0.7]
[1754398470050,43.82,167.89,167.85,13.05222886]
[1754398470243,6.39470842,167.9,167.86,0.7]
[1754398470430,43.82,167.89,167.86,0.7]
[1754398470648,6.39470842,167.9,167.86,0.7]
[1754398470961,43.82,167.89,167.86,0.7]
[1754398472354,43.82,167.89,167.86,6.65726338]
[1754398472551,6.39470842,167.9,167.86,6.65726338]
[1754398472764,0.71,167.92,167.87,0.7]
[1754398472765,6.39470842,167.92,167.87,0.7]
[1754398472954,6.39470842,167.92,167.88,0.7]
[1754398473155,7.10470842,167.91,167.86,13.0519718]
[1754398473540,7.10470842,167.91,167.87,0.7]
[1754398473865,148.2,167.89,167.87,0.7]
[1754398474646,148.2,167.89,167.85,12.35234599]
[1754398474836,148.2,167.89,167.85,13.05234599]
[1754398475039,148.2,167.89,167.85,12.35234599]
[1754398475361,148.2,167.89,167.86,7.09470842]
[1754398475565,148.2,167.89,167.87,0.7]
[1754398475876,148.2,167.89,167.86,6.39470842]
[1754398476035,148.2,167.89,167.85,13.05234599]
[1754398476666,148.2,167.89,167.86,7.09470842]
[1754398476853,148.2,167.89,167.87,0.7]
[1754398477056,50.90470842,167.88,167.84,0.06]
[1754398477277,6.39470842,167.86,167.84,0.06]
[1754398477570,6.39470842,167.85,167.84,0.06]
[1754398477749,7.10470842,167.85,167.84,0.06]
[1754398478160,13.06240874,167.85,167.84,0.06]
[1754398481238,28.31078588,167.85,167.84,0.06]
[1754398482686,54.31078588,167.85,167.84,1e-08]
[1754398483170,28.31078588,167.85,167.84,1e-08]
[1754398484544,41.10621557,167.83,167.82,1e-08]
[1754398484790,91.28092399,167.83,167.82,1e-08]
[1754398485274,26.0,167.79,167.72,6.39470842]
[1754398485490,6.39470842,167.77,167.72,6.39470842]
[1754398486247,6.39470842,167.77,167.72,5.96209046]
[1754398486678,6.39470842,167.77,167.72,12.35679888]
[1754398487260,12.35529273,167.77,167.73,0.7]
[1754398487456,0.71,167.77,167.73,0.7]
[1754398487666,6.39470842,167.76,167.73,0.7]
[1754398487868,6.39470842,167.74,167.69,6.16305689]
[1754398488193,6.39470842,167.73,167.69,0.2]
[1754398488393,6.39470842,167.74,167.7,0.7]
[1754398488598,6.39470842,167.74,167.69,12.55797458]
[1754398488599,6.39470842,167.73,167.69,0.2]
[1754398488897,6.39470842,167.73,167.69,0.9]
[1754398489095,6.39470842,167.71,167.69,0.2]
[1754398489872,32.39470842,167.72,167.69,0.2]
[1754398490871,32.39470842,167.72,167.71,0.06]
[1754398491255,39.06702656,167.72,167.71,0.06]
[1754398491864,38.35702656,167.72,167.71,0.06]
[1754398492065,69.76,167.72,167.71,0.06]
[1754398492559,32.39470842,167.72,167.71,0.06]
[1754398493700,148.2,167.73,167.71,0.06]
[1754398493859,148.2,167.73,167.71,7.15470842]
[1754398494058,148.2,167.73,167.72,0.7]
[1754398494788,148.2,167.73,167.71,0.06]
[1754398495774,148.2,167.73,167.71,6.7225861]
[1754398495956,148.2,167.73,167.72,7.09470842]
[1754398496161,148.2,167.73,167.72,0.7]
[1754398496458,148.2,167.73,167.72,13.05702656]
[1754398496661,148.2,167.73,167.72,7.09470842]
[1754398496957,148.2,167.73,167.71,12.41728837]
[1754398497161,148.2,167.73,167.71,13.11728837]
[1754398497489,148.2,167.73,167.72,7.09470842]
[1754398498071,148.2,167.73,167.72,6.39470842]
[1754398498476,148.2,167.73,167.71,6.02257995]
[1754398498477,0.71,167.73,167.71,0.06]
[1754398499274,43.74,167.74,167.71,0.06]
[1754398499604,43.74,167.76,167.72,0.66]
[1754398499771,6.39470842,167.74,167.71,0.06]
[1754398499964,0.66,167.75,167.71,0.06]
[1754398500290,0.66,167.74,167.71,0.06]
[1754398500503,13.01637001,167.74,167.71,0.06]
[1754398500658,0.66,167.73,167.71,0.06]
[1754398500857,6.594709,167.8,167.72,6.39470842]
[1754398501077,0.66,167.8,167.77,6.39470842]
[1754398501280,0.66,167.8,167.76,6.39470842]
[1754398501664,0.66,167.79,167.76,6.39470842]
[1754398502682,0.66,167.78,167.75,6.39470842]
[1754398503266,56.75425209,167.8,167.75,6.39470842]
[1754398503468,0.66,167.79,167.75,6.39470842]
[1754398503695,6.39470842,167.76,167.71,0.06]
[1754398503867,6.39470842,167.72,167.71,0.06]
[1754398504379,13.01702656,167.72,167.71,0.06]
[1754398504788,16.87140139,167.72,167.71,0.06]
[1754398505292,16.87140139,167.72,167.69,0.2]
[1754398505293,26.0,167.7,167.69,0.2]
[1754398505467,79.96908325,167.7,167.69,0.2]
[1754398505669,80.62908325,167.7,167.67,0.2]
[1754398505899,36.24908325,167.68,167.67,0.2]
[1754398506095,79.96908325,167.68,167.67,0.2]
[1754398506410,86.5928237,167.68,167.67,0.2]
[1754398507672,101.84120084,167.68,167.67,0.2]
[1754398508771,75.84120084,167.68,167.67,0.2]
[1754398510581,16.8728237,167.68,167.67,0.2]
[1754398510901,86.5928237,167.68,167.67,0.2]
[1754398512172,42.8728237,167.68,167.67,0.2]
[1754398512697,86.5928237,167.68,167.67,0.2]
[1754398513186,42.8728237,167.68,167.67,0.2]
[1754398513385,86.5928237,167.68,167.67,0.2]
[1754398515007,101.84120084,167.68,167.67,0.2]
[1754398515997,0.14216157,167.67,167.65,0.06]
[1754398516197,79.96908325,167.66,167.65,0.06]
[1754398516385,86.59353511,167.66,167.65,0.06]
[1754398517692,26.0,167.66,167.65,0.06]
[1754398518002,43.7,167.66,167.65,0.06]
[1754398518200,53.94908325,167.66,167.65,0.06]
[1754398518408,49.66445186,167.66,167.65,0.06]
[1754398518602,43.7,167.66,167.65,0.06]
[1754398518907,53.94908325,167.66,167.65,0.06]
[1754398519200,59.91353511,167.66,167.65,0.06]
[1754398521602,10.24908325,167.66,167.65,0.06]
[1754398521809,10.24908325,167.69,167.65,0.72]
[1754398521996,69.7,167.68,167.66,0.66]
[1754398523108,43.7,167.67,167.66,0.66]
[1754398523813,75.66377821,167.68,167.65,0.06]
[1754398524120,85.91286146,167.68,167.65,0.06]
[1754398524419,10.90908325,167.67,167.65,0.06]
[1754398524594,59.89353511,167.66,167.65,0.06]
[1754398524908,56.71447748,167.66,167.65,0.06]
[1754398525396,82.71447748,167.66,167.65,0.06]
[1754398526319,76.30445186,167.66,167.65,0.06]
[1754398526625,82.71447748,167.66,167.65,0.06]
[1754398526783,86.56268887,167.66,167.65,0.06]
[1754398528299,85.90268887,167.66,167.65,0.06]
[1754398528823,86.56268887,167.66,167.65,0.06]
[1754398529034,76.30445186,167.66,167.65,0.06]
[1754398529204,86.56268887,167.66,167.65,0.06]
[1754398530020,42.88268887,167.66,167.65,0.06]
[1754398530335,86.56268887,167.66,167.65,0.06]
[1754398530739,86.56268887,167.66,167.58,0.06]
[1754398530740,26.0,167.63,167.58,0.06]
[1754398530924,43.68,167.62,167.58,0.06]
[1754398531100,10.25823701,167.6,167.58,0.06]
[1754398531306,53.91823701,167.6,167.58,0.06]
[1754398531732,10.25823701,167.59,167.58,0.06]
[1754398532930,16.22518014,167.59,167.58,0.06]
[1754398533313,44.38,167.6,167.58,0.06]
[1754398533314,43.66,167.6,167.58,0.74]
[1754398533504,10.25823701,167.62,167.58,0.74]
[1754398533705,43.66,167.61,167.59,0.68]
[1754398533906,53.91823701,167.61,167.58,0.06]
[1754398534349,12.437251,167.69,167.58,0.06]
[1754398534643,26.0,167.63,167.6,10.25823701]
[1754398534814,43.66,167.64,167.63,0.06]
[1754398535132,75.62516344,167.64,167.63,0.06]
[1754398535826,76.34516344,167.64,167.63,0.06]
[1754398536008,75.62516344,167.64,167.63,0.06]
[1754398536543,69.66,167.64,167.63,0.06]
[1754398536708,75.62516344,167.64,167.63,0.06]
[1754398537211,0.03,167.67,167.63,0.74]
[1754398537412,69.66,167.66,167.63,0.74]
[1754398537743,69.66,167.66,167.63,0.06]
[1754398537906,0.72,167.65,167.63,0.06]
[1754398538105,43.64,167.64,167.63,0.06]
[1754398538326,0.72,167.65,167.63,0.06]
[1754398538529,43.64,167.64,167.63,0.06]
[1754398538749,44.36,167.64,167.63,0.06]
[1754398539121,50.32516344,167.64,167.63,0.06]
[1754398539532,60.58340045,167.64,167.63,0.06]
[1754398539723,86.58340045,167.64,167.63,0.06]
[1754398542136,75.83177759,167.64,167.63,1e-08]
[1754398542338,86.0900146,167.64,167.63,1e-08]
[1754398542754,75.83177759,167.64,167.63,1e-08]
[1754398543964,41.10621557,167.6,167.52,0.74]
[1754398544132,10.25823701,167.53,167.52,0.06]
[1754398544445,43.62,167.53,167.52,0.06]
[1754398544821,53.87823701,167.53,167.52,0.06]
[1754398545252,43.62,167.53,167.52,0.06]
[1754398545528,43.62,167.53,167.52,0.68]
[1754398545950,43.62,167.53,167.5,2.8]
[1754398546161,43.62,167.53,167.51,0.68]
[1754398546452,10.25823701,167.55,167.52,0.68]
[1754398546749,43.62,167.54,167.52,0.68]
[1754398547657,36.25823701,167.55,167.52,0.68]
[1754398547847,69.62,167.55,167.53,0.68]
[1754398548357,69.62,167.55,167.51,10.93823701]
[1754398548570,69.62,167.55,167.52,0.68]
[1754398549062,85.84661129,167.55,167.52,0.68]
[1754398549260,79.87823701,167.55,167.52,0.68]
[1754398549433,79.87823701,167.55,167.53,0.68]
[1754398549635,79.87823701,167.55,167.51,0.68]
[1754398549823,79.87823701,167.55,167.52,0.68]
[1754398550265,85.84665679,167.55,167.5,19.02830814]
[1754398550455,10.25823701,167.54,167.5,2.8]
[1754398550665,10.97823701,167.53,167.5,2.12]
[1754398550870,53.87823701,167.53,167.5,2.12]
[1754398551645,43.62,167.53,167.5,2.12]
[1754398551963,43.62,167.53,167.51,0.68]
[1754398552663,6.41897529,167.54,167.51,0.68]
[1754398552865,0.72,167.56,167.51,0.68]
[1754398552866,43.62,167.56,167.52,7.09897529]
[1754398553032,43.62,167.56,167.53,0.68]
[1754398553237,26.0,167.58,167.55,6.41897529]
[1754398553448,6.41897529,167.6,167.56,0.68]
[1754398553681,0.72,167.61,167.56,7.09897529]
[1754398553970,43.62,167.61,167.58,6.41897529]
[1754398554127,43.62,167.61,167.58,7.09897529]
[1754398554579,43.62,167.61,167.56,5.96773134]
[1754398554580,50.30624005,167.61,167.57,6.41897529]
[1754398554737,0.72,167.6,167.56,10.26134722]
[1754398554936,0.72,167.6,167.54,0.68]
[1754398554937,0.72,167.59,167.54,0.68]
[1754398555147,0.72,167.59,167.55,10.26134722]
[1754398555668,43.6,167.6,167.57,10.26134722]
[1754398556045,43.6,167.6,167.57,10.94134722]
[1754398556262,50.28660055,167.6,167.56,10.26134722]
[1754398556448,0.72,167.59,167.55,10.26134722]
[1754398556648,0.72,167.59,167.55,10.94134722]
[1754398556962,43.6,167.59,167.56,10.94134722]
[1754398557463,69.6,167.6,167.58,10.26134722]
[1754398557641,0.03,167.59,167.55,5.96832711]
[1754398557962,0.03,167.59,167.58,10.26134722]
[1754398558531,0.03,167.59,167.58,16.90864642]
[1754398558734,0.03,167.59,167.58,17.05080799]
[1754398558964,0.03,167.67,167.59,15.24837714]
[1754398559134,0.03,167.67,167.66,10.26134722]
[1754398560563,0.03,167.67,167.66,16.93579908]
[1754398560734,0.03,167.67,167.66,10.97134722]
[1754398560936,0.03,167.67,167.65,10.26134722]
[1754398561161,0.03,167.67,167.62,0.71]
[1754398561332,0.7,167.67,167.63,10.26134722]
[1754398561534,0.7,167.67,167.64,10.26134722]
[1754398562167,0.7,167.67,167.62,0.71]
[1754398562342,6.66439451,167.67,167.63,10.26134722]
[1754398562543,5.99439451,167.67,167.64,10.26134722]
[1754398562853,5.99439451,167.67,167.63,10.97134722]
[1754398563176,0.67,167.66,167.63,10.26134722]
[1754398563542,0.03,167.67,167.63,10.26134722]
[1754398563743,6.66418841,167.67,167.63,10.26134722]
[1754398563946,10.26134722,167.64,167.57,5.9676553]
[1754398564160,10.26134722,167.64,167.6,10.26134722]
[1754398564464,16.89669146,167.64,167.6,10.26134722]
[1754398564650,16.22623956,167.65,167.6,10.97134722]
[1754398564957,16.89623956,167.65,167.6,10.97134722]
[1754398565469,16.22623956,167.65,167.6,10.97134722]
[1754398565683,16.89623956,167.65,167.6,10.97134722]
[1754398565839,16.89623956,167.65,167.6,16.93783239]
[1754398566179,148.23,167.67,167.63,10.26134722]
[1754398566372,148.23,167.67,167.63,10.97134722]
[1754398566373,154.19413621,167.67,167.63,10.97134722]
[1754398566668,165.12548343,167.67,167.62,10.26134722]
[1754398566871,165.12548343,167.67,167.62,10.97134722]
[1754398567248,0.67,167.66,167.62,10.97134722]
[1754398567884,0.67,167.66,167.62,16.93720435]
[1754398568184,208.01548343,167.67,167.62,16.93720435]
[1754398568480,191.79,167.67,167.63,10.26134722]
[1754398568644,197.75415154,167.67,167.63,10.97134722]
[1754398569492,198.42415154,167.67,167.63,10.97134722]
[1754398569787,192.46,167.67,167.63,10.97134722]
[1754398569977,148.2,167.66,167.63,10.97134722]
[1754398570276,148.2,167.66,167.63,10.26134722]
[1754398570459,148.2,167.66,167.64,10.26134722]
[1754398570777,148.2,167.65,167.63,5.9653606]
[1754398570959,148.2,167.65,167.64,10.26134722]
[1754398571273,0.03,167.67,167.64,10.26134722]
[1754398571445,0.03,167.67,167.66,10.26134722]
[1754398572147,0.03,167.67,167.66,10.97134722]
[1754398572555,0.03,167.67,167.66,16.93579908]
[1754398575449,0.03,167.67,167.66,16.22579908]
[1754398576281,0.03,167.67,167.66,16.93579908]
[1754398577185,0.03,167.67,167.66,32.18417622]
[1754398578165,0.03,167.67,167.66,75.68417622]
[1754398578491,0.03,167.69,167.67,15.24837714]
[1754398578664,0.03,167.69,167.68,10.40350879]
[1754398578985,0.03,167.69,167.68,17.07724924]
[1754398579188,0.03,167.69,167.68,32.77983885]
[1754398579389,0.03,167.69,167.68,32.18346481]
[1754398580081,0.03,167.69,167.68,17.07724924]
[1754398580379,0.03,167.69,167.68,32.18346481]